Cogmind - Beta 14 @@@ ROGUE MODE // 2025.01.01 @ 10:36:58 Player: Demo Result: Destroyed by P-70 Sage with High-powered Shock Rifle Performance ------------- Evolutions (5) 2500 Regions Visited (13) 2600 Robots Destroyed (138) 690 Value Destroyed (5199) 5199 Prototype IDs (20) 400 Alien Tech Used (0) 0 Bonus (5893) 5893 TOTAL SCORE: 17282 Bonus ------- Triggered High Security 500 High Alert Combat Kills 1502 Follower Combat Kills 2512 Entered Garrisons 200 Used RIF Installer 500 Entered DSFs 500 Registered with UFD 300 Friendly Fire -121 Cogmind --------- Core Integrity 0/1000 Matter 280/300 Energy 100/100 System Corruption 27% Temperature Cool (0) Movement Core (50) Location -5/Extension Parts ------- > --- POWER (1) -------- (None) > --- PROPULSION (4) --- (None) > --- UTILITY (9) ------ (None) > --- WEAPON (3) ------- (None) > --- INVENTORY (5) ---- Variable Charge Gun Linear Accelerator Ionic Axe Ionic Axe Peak State ------------ > --- POWER ------------ Antimatter Reactor > --- PROPULSION ------- Armored Huge Wheel Armored Huge Wheel > --- UTILITY ---------- Improved Cooling System Advanced Cooling System Large Storage Unit Advanced Signal Interpreter Energy Filter Stasis Canceller Improved Light Armor Plating Improved Thermal Shield Improved Shock Absorption System > --- WEAPON ----------- Gamma Rifle Compact HERF Cannon Linear Accelerator > --- INVENTORY -------- Antimatter Reactor Particle Reactor Compact Wheel Armored Huge Wheel Armored Huge Wheel Compact HERF Cannon Hypervelocity Railgun Hypervelocity Railgun Improved Proton Missile Launcher Micro-nuke Launcher Ionic Axe Ionic Axe [Rating: 95] Favorites ----------- Power Improved Ion Engine Engine Improved Ion Engine Power Core Light Nuclear Core Reactor Antimatter Reactor Propulsion Wheel Treads Heavy Treads Leg Carbon-fiber Leg Wheel Wheel Hover Unit Backup Propulsion III Flight Unit Cesium-ion Thruster Utility Huge Storage Unit Device Structural Scanner Storage Huge Storage Unit Processor Advanced Signal Interpreter Protection Improved Light Armor Plating Weapon Plasma Rifle Energy Gun Plasma Rifle Energy Cannon Compact HERF Cannon Ballistic Gun Hypervelocity Railgun Ballistic Cannon Linear Accelerator Launcher Micro-nuke Launcher Special Weapon CPS Tube Impact Weapon Hammer Slashing Weapon Great Axe Build | -11 -10 -10 -10 -8 -8 -6 -6 -6 -6 -6 -6 -5 -5 ------- Run | Yrd Mat Min Sub Rec Scr Fac Was Fac Gar Fac DSF Fac Ext Slots Evolved 10 | . . . . . . 8 . . . . . 2 . Power . | . . . . . . . . . . . . . . Propulsion 2 | . . . . . . 2 . . . . . . . Utility 7 | . . . . . . 5 . . . . . 2 . Weapon 1 | . . . . . . 1 . . . . . . . Parts Attached 188 | 8 13 4 12 4 10 44 12 13 20 1 12 8 27 Power 19 | 1 2 1 1 . 1 5 . 2 4 . . . 2 Engine 9 | 1 1 . 1 . . 3 . 2 1 . . . . Core 3 | . 1 1 . . 1 . . . . . . . . Reactor 7 | . . . . . . 2 . . 3 . . . 2 Propulsion 44 | 2 4 1 7 1 1 12 3 2 5 . 2 . 4 Treads 6 | 1 1 . 2 . . . 1 . 1 . . . . Leg 3 | . . . . . . . 2 . 1 . . . . Wheel 32 | 1 3 1 5 1 1 11 . 2 3 . 2 . 2 Hover . | . . . . . . . . . . . . . . Flight 3 | . . . . . . 1 . . . . . . 2 Utility 61 | 3 5 1 1 . 4 18 1 5 6 1 4 3 9 Device 30 | 2 . 1 . . 3 9 . 3 4 . 2 2 4 Storage 12 | 1 5 . 1 . 1 . . 1 1 . 1 1 . Processor 7 | . . . . . . 5 1 . . . 1 . . Hackware . | . . . . . . . . . . . . . . Protection 12 | . . . . . . 4 . 1 1 1 . . 5 Artifact . | . . . . . . . . . . . . . . Weapon 64 | 2 2 1 3 3 4 9 8 4 5 . 6 5 12 Energy Gun 17 | 1 1 . 1 . 2 3 . 4 2 . 1 1 1 Energy Cannon 4 | . . . . 1 . 1 . . 1 . . . 1 Ballistic Gun 11 | 1 1 1 2 1 . 2 . . 1 . . . 2 Ballistic Cannon 8 | . . . . . . 1 . . . . 3 1 3 Launcher 14 | . . . . 1 . . 7 . 1 . 1 . 4 Special Weapon 3 | . . . . . 2 . 1 . . . . . . Impact Weapon 1 | . . . . . . . . . . . 1 . . Slashing Weapon 6 | . . . . . . 2 . . . . . 3 1 Piercing Weapon . | . . . . . . . . . . . . . . Special Melee Weapon . | . . . . . . . . . . . . . . Unidentified Prototypes 4 | . . . . . . 2 . . . . . 2 . Parts Lost 56 | . 2 1 6 . . 18 5 . 1 . . . 23 Power 8 | . 1 1 1 . . 2 1 . . . . . 2 Propulsion 18 | . 1 . 2 . . 5 4 . . . . . 6 Utility 18 | . . . . . . 7 . . . . . . 11 Weapon 12 | . . . 3 . . 4 . . 1 . . . 4 Highest Loss Streak 18 | . 1 1 2 . . 7 5 . 1 . . . 18 To Critical Strikes 1 | . . . . . . . . . . . . . 1 Average Slot Usage (%) 83 | . 99 96 99 100 74 89 34 77 92 89 85 86 84 Engine 6 | . 2 . 2 14 11 2 2 6 1 . . . . Core 2 | . 10 10 11 . 2 . . . . . . . . Reactor 1 | . . . . . . 3 . . 4 6 6 5 4 Treads 1 | . 1 . 6 . . . 1 6 6 6 2 . . Wheel 21 | . 26 28 21 28 28 22 3 2 12 13 9 11 10 Device 16 | . 14 14 14 14 13 15 . 12 27 26 26 28 28 Storage 10 | . 14 14 14 14 13 6 . 4 4 6 6 10 5 Processor 2 | . . . . . . 13 8 6 . . 4 5 4 Protection 2 | . . . . . . 4 1 9 13 9 7 5 8 Energy Gun 6 | . 14 14 13 . 1 10 6 16 17 6 6 5 1 Energy Cannon 1 | . . . . 12 . 1 . . 1 6 6 5 5 Ballistic Gun 4 | . 14 14 14 14 . 1 1 . 1 6 1 . 3 Special Weapon 1 | . . . . . 2 . . . . . . . . Peak Build Rating 95 | 9 10 13 17 16 25 61 51 65 77 77 86 90 95 Average Rating 32 | 5 9 10 15 15 14 51 25 54 67 75 81 89 89 On Entrance 40 | . 7 10 13 16 16 25 50 41 64 77 77 82 90 Naked Turns 11 | . . . . . . . 10 . . . . . 1 Heaviest Build 124 | 12 30 31 95 97 95 124 108 34 68 68 73 79 86 Greatest Support 70 | 16 26 20 20 20 20 50 46 20 70 20 56 56 56 Greatest Overweight (x) 9 | . 1 1 9 9 4 4 5 1 3 3 3 1 3 Average Overweight (x) 2 | . . 1 5 4 3 2 . . 1 3 1 1 . Largest Inventory Capacity 25 | 8 25 15 25 25 25 25 25 5 15 15 15 15 15 Average Capacity 19 | 7 13 15 23 25 24 25 7 5 10 15 15 15 14 Most Carried 25 | 8 15 15 25 25 25 25 22 5 15 15 15 15 15 Average Carried 18 | 5 12 14 22 24 23 22 6 4 10 15 14 14 14 Final Capacity 25 | 8 15 15 25 25 25 25 5 5 15 15 15 15 5 Final Carried 25 | 8 15 15 24 25 25 20 5 5 15 15 15 15 4 Class Distribution -------------------- 56% | Mutant 21% | Scavenger-Tank 19% | Scavenger-Mutant Dominant Class ---------------- Scavenger-Mutant | -10/Materials Scavenger-Mutant | -10/Mines Scavenger-Mutant | -10/Subcaves Mutant | -8/Recycling Mutant | -8/Scraptown Scavenger-Mutant | -6/Factory Mutant | -6/Waste Scavenger-Tank | -6/Factory Scavenger-Tank | -6/Garrison Scavenger-Tank | -6/Factory Scavenger-Tank | -6/DSF Scavenger-Tank | -5/Factory Scavenger-Tank | -5/Extension Resources | -11 -10 -10 -10 -8 -8 -6 -6 -6 -6 -6 -6 -5 -5 ----------- Run | Yrd Mat Min Sub Rec Scr Fac Was Fac Gar Fac DSF Fac Ext Matter Collected 4685 | 331 306 220 249 165 325 442 349 422 423 . 73 . 1380 Remotely . | . . . . . . . . . . . . . . Salvage Created 6701 | 216 573 193 480 240 . 895 720 176 492 . 84 . 2632 Parts 285 | 21 36 16 30 13 . 50 8 9 13 . . . 89 Haulers Intercepted 5 | . 2 . . . . . . 1 . . . . 2 Recyclers Shooed 5 | . . . . 1 . 1 . 2 . . . . 1 Parts Field Recycled . | . . . . . . . . . . . . . . Retrieved Matter . | . . . . . . . . . . . . . . Parts Self-Destructed 16 | . . . 16 . . . . . . . . . . Prevented . | . . . . . . . . . . . . . . Kills | -11 -10 -10 -10 -8 -8 -6 -6 -6 -6 -6 -6 -5 -5 ------- Run | Yrd Mat Min Sub Rec Scr Fac Was Fac Gar Fac DSF Fac Ext Combat Hostiles Destroyed 89 | . 8 6 10 2 . 10 4 . 10 . . . 39 Guns 52 | . 8 6 10 . . 8 . . 10 . . . 10 Cannons 8 | . . . . 1 . 1 . . . . . . 6 AOE 25 | . . . . 1 . . 4 . . . . . 20 Classes Destroyed 22 | 3 4 1 2 1 . 4 1 . . . . . 6 Worker 8 | 2 1 2 . . . . . 3 . . . . . Builder 9 | . 1 1 . 1 . 3 . 1 . . . . 2 Tunneler 7 | 5 . . . . . 1 . . . . . . 1 Hauler 5 | . 2 . . . . . . 1 . . . . 2 Recycler 7 | 1 1 . . 2 . 2 . . . . . . 1 Carrier 1 | . . . . . . . . . . . . . 1 Mechanic 4 | . . . . . . 1 . . . . . . 3 Operator 3 | . 2 . . . . 1 . . . . . . . Turret 2 | . . . 2 . . . . . . . . . . Watcher 3 | . . . . . . 1 . . . . . . 2 Swarmer 25 | . . 4 4 . . 4 . . 7 . . . 6 Saboteur 2 | . . . . . . . . . . . . . 2 Grunt 34 | . 8 2 . . . 2 . . 2 . . . 20 Brawler 1 | . . . . . . . . . . . . . 1 Duelist 4 | . . . . . . . . . . . . . 4 Sentry 6 | . . . . 2 . . . . . . . . 4 Specialist 1 | . . . . . . . . . . . . . 1 Hunter 3 | . . . . . . 3 . . . . . . . Programmer 2 | . . . . . . 1 . . 1 . . . . Behemoth 1 | . . . . . . . . . . . . . 1 Compactor 4 | . . . . . . . 4 . . . . . . Subdweller 6 | . . . 6 . . . . . . . . . . Best Kill Streak 16 | 4 3 3 4 2 . 6 3 2 4 . . . 16 Combat Bots Only 13 | . 3 3 4 2 . 3 3 . 4 . . . 13 Max Kills in Single Turn 5 | 1 2 2 1 2 . 1 2 1 2 . . . 5 Gunslinging 1 | . . . . . . . . . 1 . . . . Exploded 4 | . . . . 1 . . 2 . . . . . 4 Melee . | . . . . . . . . . . . . . . Uniques/NPCs Destroyed . | . . . . . . . . . . . . . . Combat | -11 -10 -10 -10 -8 -8 -6 -6 -6 -6 -6 -6 -5 -5 -------- Run | Yrd Mat Min Sub Rec Scr Fac Was Fac Gar Fac DSF Fac Ext Hostile Shots Fired 753 | . 38 27 109 8 . 171 5 1 78 . . 14 302 Missed 239 | . 11 7 40 3 . 41 1 1 28 . . 8 99 Damage Taken 8365 | . 358 228 673 69 . 2056 214 27 858 . 42 140 3700 Core 1640 | . 34 58 106 41 . 352 19 25 . . . . 1005 Absorbed by Shields 351 | . . . . . . . . . 44 . . . 307 Redirected to Shielding 206 | . . . . . . . . . . . . . 206 Ignored by Resistances 421 | . . . . . . 40 . . 56 . . 27 298 Regen/Repaired (Parts) 244 | . . . . . . 33 . . 180 . 1 30 . Core Remaining (%) 52 | 100 . . . . 4 . . . . . 53 . . Volleys Fired 415 | 17 66 26 52 9 . 40 31 21 70 . 4 2 77 Largest 3 | 2 2 2 2 2 . 3 2 3 3 . 3 3 3 Hottest 394 | 60 60 73 93 96 . 168 80 184 225 . 235 235 394 Shots Fired 863 | 34 131 52 102 19 . 96 32 43 140 . 12 6 196 Gun 658 | 34 131 52 102 6 . 58 4 43 137 . 4 2 85 Cannon 136 | . . . . 10 . 38 . . 2 . 6 4 76 Launcher 67 | . . . . 3 . . 26 . 1 . 2 . 35 Special 2 | . . . . . . . 2 . . . . . . Kinetic 298 | 17 67 26 57 6 . 27 . . 2 . 2 2 92 Thermal 375 | 17 64 26 45 10 . 33 4 43 130 . . . 3 Explosive 53 | . . . . 3 . . 26 . 1 . 2 . 21 Electromagnetic 135 | . . . . . . 36 . . 7 . 8 4 80 Robot Hit Streak 27 | 5 17 7 21 7 . 11 27 16 26 . 6 4 11 Robot Miss Streak 8 | 6 3 4 3 1 . 5 1 1 7 . 2 1 8 Penetration Max 2 | . . . . . . . . . . . . . 2 Secondary Targets 6 | . . . 2 . . 1 . . 3 . . . . Max Gunslinging Chain 1 | . . . 1 . . 1 . . 1 . . . . Shots Hit Robots 510 | 17 85 31 72 9 . 64 22 35 63 . 8 5 99 Core Hits 297 | 8 31 14 24 11 . 32 13 9 25 . 3 . 127 Critical Kills 7 | 1 . . 1 . . 1 . . 1 . . . 3 Critical Parts Destroyed 11 | . . . . . . 1 . . . . . . 10 Critical Strikes 38 | 1 . 1 5 . . 3 . . 10 . . . 18 Burn 14 | . . 1 4 . . . . . 9 . . . . Meltdown 1 | . . . . . . 1 . . . . . . . Destroy 21 | 1 . . 1 . . 1 . . 1 . . . 17 Corrupt 2 | . . . . . . 1 . . . . . . 1 Melee Attacks 23 | . . . . . . 12 . . . . . 7 4 Impact . | . . . . . . . . . . . . . . Slashing 23 | . . . . . . 12 . . . . . 7 4 Piercing . | . . . . . . . . . . . . . . Sneak Attacks 2 | . . . . . . 1 . . . . . . 1 Combat Hostiles . | . . . . . . . . . . . . . . Follow-up Attacks . | . . . . . . . . . . . . . . Damage Inflicted 22835 | 240 1044 389 1010 213 . 1467 6576 492 1432 . 677 172 9123 Guns 6263 | 240 1044 389 1010 12 . 772 . 487 1391 . 48 51 819 Cannons 2923 | . . . . 104 . 529 . . 41 . 136 121 1992 Explosions 13424 | . . . . 97 . 88 6576 . . . 493 . 6170 Melee 157 | . . . . . . 78 . . . . . . 79 Ramming 68 | . . . . . . . . 5 . . . . 63 Kinetic 2770 | 109 575 158 569 12 . 348 . . 8 . 21 44 926 Thermal 4000 | 131 469 231 441 104 . 508 . 487 1342 . . . 287 Explosive 11752 | . . . . 97 . . 6576 . . . 493 . 4586 Electromagnetic 4088 | . . . . . . 533 . . 82 . 163 128 3182 Impact . | . . . . . . . . . . . . . . Slashing 157 | . . . . . . 78 . . . . . . 79 Piercing . | . . . . . . . . . . . . . . Highest Corruption 27 | . 1 1 1 1 1 3 3 3 4 4 4 1 27 Average Corruption 1 | . 1 1 1 1 1 2 3 3 3 4 4 1 1 Corruption Purged . | . . . . . . . . . . . . . . Corruption Blocked . | . . . . . . . . . . . . . . Effects 135 | . 7 4 3 9 31 6 12 7 33 2 4 1 16 Message Errors 27 | . . . 1 2 8 4 1 . 7 . . . 4 Matter Fused 38 | . 1 3 . 4 6 . 3 1 10 1 2 1 6 Heat Flow Errors 15 | . 1 . . . 5 1 2 1 4 . . . 1 Energy Discharges 21 | . 2 . . 2 4 . 2 3 5 . 1 . 2 Parts Fused 1 | . . . . . . . . . 1 . . . . Data Loss (minor) 17 | . 1 1 1 . 6 . 3 . 2 1 1 . 1 Data Loss (major) 6 | . . . 1 . 2 . . 1 1 . . . 1 Misfires 3 | . 1 . . 1 . . . . 1 . . . . Alerts 2 | . . . . . . 1 . . 1 . . . . Weapon Failures 5 | . 1 . . . . . 1 1 1 . . . 1 Overload Shots 3 | . . . . . . . . . . . . . 3 Overflow Damage 489 | . . . . . . 82 19 . . . 46 . 342 Projectiles 50 | . . . . . . . . . . . . . 50 Explosions 356 | . . . . . . 39 19 . . . 46 . 252 Melee 83 | . . . . . . 43 . . . . . . 40 Knockbacks 11 | . . . . . . 7 . . . . 1 2 1 Impact . | . . . . . . . . . . . . . . Kinetic 10 | . . . . . . 7 . . . . 1 1 1 Secondary 1 | . . . . . . . . . . . . 1 . Self-Inflicted Damage 115 | . . . . . . 47 38 2 . . . . 28 Shots 2 | . . . . . . 1 1 . . . . . . Rammed 12 | . . . . . . . . 1 . . . . 11 Targets Rammed 12 | . . . . . . . . 1 . . . . 11 Kicked . | . . . . . . . . . . . . . . Crushed . | . . . . . . . . . . . . . . Highest Temperature 513 | . 199 267 28 144 257 248 266 130 288 . . 156 513 Average Temperature 70 | . 32 85 12 54 106 75 130 42 58 . . 55 113 Received Heat Transfer 1347 | . 195 96 180 27 . 138 . . 123 . . 36 552 Effects 6 | . . . . . . . . . 2 . . . 4 Interference 5 | . . . . . . . . . 2 . . . 3 Damage (minor) 1 | . . . . . . . . . . . . . 1 Siege Activations . | . . . . . . . . . . . . . . Robots Corrupted 3 | . . . . . . . . . . . . . 3 Combat Hostiles 3 | . . . . . . . . . . . . . 3 Parts Fried 13 | . . . . . . 1 . . . . . . 12 Impact Corruptions 1 | . . . . . . . . . . . . . 1 Robots Melted 3 | . . . . . . 1 . 1 1 . . . . Combat Hostiles 1 | . . . . . . 1 . . . . . . . Parts Melted 14 | . . 1 . . . 1 . 2 10 . . . . Heat Transferred 9914 | 300 1050 740 1369 222 . 779 . 1308 3846 . . . 300 Parts Sabotaged 2 | . . . . . . . . . . . . . 2 Parts Stolen . | . . . . . . . . . . . . . . Parts Stripped . | . . . . . . . . . . . . . . Power Chain Reactions 2 | . . . . . . 1 . . . . . . 1 Alert | -11 -10 -10 -10 -8 -8 -6 -6 -6 -6 -6 -6 -5 -5 ------- Run | Yrd Mat Min Sub Rec Scr Fac Was Fac Gar Fac DSF Fac Ext Peak Influence 2427 | 40 256 246 . 147 . 214 170 387 2116 1110 1267 806 2427 Initial 1110 | . 26 24 . 84 . . 74 . 130 1110 777 665 382 Average 537 | 18 92 106 . 69 . 63 83 240 1235 1110 1112 733 1190 Maximum Alert Level 5 | . 1 1 . . . 1 . 1 5 4 4 3 5 Low Security (%) 50 | 100 82 72 . 100 . 99 100 42 3 . . . . Level 1 8 | . 17 27 . . . . . 57 . . . . 2 Level 2 10 | . . . . . . . . . 23 . . 43 26 Level 3 8 | . . . . . . . . . 3 . 26 56 28 Level 4 10 | . . . . . . . . . 35 100 73 . 13 Level 5 5 | . . . . . . . . . 33 . . . . High Security 5 | . . . . . . . . . . . . . 27 Max Security . | . . . . . . . . . . . . . . Sterilizations 1 | . . . . . . . . . . . 1 . . Squads Dispatched 29 | . 3 . . . . 4 . 1 . . 2 1 18 Investigation 5 | . 2 . . . . 1 . . . . . 1 1 Extermination . | . . . . . . . . . . . . . . Reinforcement 8 | . 1 . . . . 3 . 1 . . 2 . 1 Assault 16 | . . . . . . . . . . . . . 16 Garrison . | . . . . . . . . . . . . . . Intercept . | . . . . . . . . . . . . . . Searches Triggered . | . . . . . . . . . . . . . . Construction Impeded 3 | . . . . . . 1 . 1 . . . . 1 Haulers Reinforced . | . . . . . . . . . . . . . . Active Scanning Responses . | . . . . . . . . . . . . . . Cargo Convoy Interrupts . | . . . . . . . . . . . . . . Stealth | -11 -10 -10 -10 -8 -8 -6 -6 -6 -6 -6 -6 -5 -5 --------- Run | Yrd Mat Min Sub Rec Scr Fac Was Fac Gar Fac DSF Fac Ext Distress Signals 3 | . 2 . . . . . . . . . . . 1 Communications Jammed . | . . . . . . . . . . . . . . Distress Signals . | . . . . . . . . . . . . . . Times Spotted 251 | . 16 12 16 2 . 15 6 4 24 . 7 7 142 Peak Tracking Total 30 | . 3 3 6 2 . 5 6 2 5 . 3 6 30 Tactical Retreats 24 | . 1 1 2 . . 2 1 . 1 . . 2 14 Traps | -11 -10 -10 -10 -8 -8 -6 -6 -6 -6 -6 -6 -5 -5 ------- Run | Yrd Mat Min Sub Rec Scr Fac Was Fac Gar Fac DSF Fac Ext Traps Triggered 15 | . 1 . . . . 3 . . 2 . 4 . 5 Indirectly . | . . . . . . . . . . . . . . Trap Hack Attempts . | . . . . . . . . . . . . . . Triggered . | . . . . . . . . . . . . . . Disarmed . | . . . . . . . . . . . . . . Reprogrammed . | . . . . . . . . . . . . . . Reused . | . . . . . . . . . . . . . . Traps Extracted . | . . . . . . . . . . . . . . Installed . | . . . . . . . . . . . . . . Triggered 3 | . . . 1 . . . . . . . . . 2 Most Traps Carried 7 | . . . . . . . . . 7 . . . . Machines | -11 -10 -10 -10 -8 -8 -6 -6 -6 -6 -6 -6 -5 -5 ---------- Run | Yrd Mat Min Sub Rec Scr Fac Was Fac Gar Fac DSF Fac Ext Machines Disabled 26 | . . . 2 2 . 4 . 1 11 . 1 . 5 Max in Single Turn 2 | . . . 1 1 . 2 . . 2 . . . 2 Garrison Relay 3 | . . . . . . . . . 3 . . . . Phase Generator 1 | . . . . . . . . . 1 . . . . Machines Repaired . | . . . . . . . . . . . . . . Machines Dismantled . | . . . . . . . . . . . . . . Machines Sabotaged . | . . . . . . . . . . . . . . Overloaded Fab Kills . | . . . . . . . . . . . . . . Hacking | -11 -10 -10 -10 -8 -8 -6 -6 -6 -6 -6 -6 -5 -5 --------- Run | Yrd Mat Min Sub Rec Scr Fac Was Fac Gar Fac DSF Fac Ext Machines Accessed 44 | . 8 2 . 13 7 3 . 1 1 1 . 3 5 Terminals 23 | . 6 1 . 6 . 2 . . 1 1 . 1 5 Fabricators . | . . . . . . . . . . . . . . Repair Stations . | . . . . . . . . . . . . . . Recycling Units 9 | . 2 . . 7 . . . . . . . . . Scanalyzers 3 | . . . . . . 1 . . . . . 2 . Garrison Access 1 | . . . . . . . . 1 . . . . . Total Hacks 139 | . 19 3 . 44 47 5 . 2 2 3 . 6 8 Successful 91 | . 8 1 . 20 47 3 . 1 1 1 . 4 5 Failed 48 | . 11 2 . 24 . 2 . 1 1 2 . 2 3 Catastrophic 7 | . 2 . . 3 . 2 . . . . . . . Database Lockouts . | . . . . . . . . . . . . . . Manual 41 | . 16 2 . 21 . 1 . . 1 . . . . Terminals 55 | . 14 2 . 22 . 3 . . 2 3 . 1 8 Fabricators . | . . . . . . . . . . . . . . Repair Stations . | . . . . . . . . . . . . . . Recycling Units 27 | . 5 . . 22 . . . . . . . . . Scanalyzers 7 | . . . . . . 2 . . . . . 5 . Garrison Access 2 | . . . . . . . . 2 . . . . . Terminal Hacks 66 | . 2 1 . 6 47 2 . . 1 1 . 1 5 Record 46 | . . . . . 46 . . . . . . . . Part Schematic 2 | . . . . 2 . . . . . . . . . Robot Analysis 4 | . 2 . . 2 . . . . . . . . . Prototype ID Bank 1 | . . . . . . 1 . . . . . . . Open Door 7 | . . 1 . . . . . . . . . 1 5 Open DSF 1 | . . . . . . . . . . 1 . . . Emergency Access Points 1 | . . . . . . . . . 1 . . . . Terminal Index 1 | . . . . 1 . . . . . . . . . Alert Level 1 | . . . . . . 1 . . . . . . . Zone Layout 1 | . . . . 1 . . . . . . . . . Derelict Proto ID Bank 1 | . . . . . 1 . . . . . . . . Fabricator Hacks . | . . . . . . . . . . . . . . Repair Station Hacks . | . . . . . . . . . . . . . . Recycling Unit Hacks 10 | . 2 . . 8 . . . . . . . . . Process 1 | . 1 . . . . . . . . . . . . Report Inventory 8 | . 1 . . 7 . . . . . . . . . Retrieve Components 1 | . . . . 1 . . . . . . . . . Scanalyzer 4 | . . . . . . 1 . . . . . 3 . Insert Component 3 | . . . . . . 1 . . . . . 2 . Analyze 1 | . . . . . . . . . . . . 1 . Garrison Access Hacks 1 | . . . . . . . . 1 . . . . . Unlock Access 1 | . . . . . . . . 1 . . . . . Unauthorized Hacks 9 | . 4 . . 5 . . . . . . . . . Terminals 4 | . 4 . . . . . . . . . . . . Track 1 | . 1 . . . . . . . . . . . . Assimilate 2 | . 2 . . . . . . . . . . . . Operators 1 | . 1 . . . . . . . . . . . . Fabricators . | . . . . . . . . . . . . . . Repair Stations . | . . . . . . . . . . . . . . Recycling Units 5 | . . . . 5 . . . . . . . . . Reject 5 | . . . . 5 . . . . . . . . . Scanalyzers . | . . . . . . . . . . . . . . Garrison Access . | . . . . . . . . . . . . . . Data Cores Recovered . | . . . . . . . . . . . . . . Used . | . . . . . . . . . . . . . . Hacking Detections 31 | . 8 1 . 11 . 3 . 1 1 . . 3 3 Full Trace Events 16 | . 3 1 . 9 . 1 . . . . . 1 1 Feedback Events 1 | . . . . . . . . . . . . 1 . Corruption 1 | . . . . . . . . . . . . 1 . Feedback Blocked . | . . . . . . . . . . . . . . Robot Schematics Acquired . | . . . . . . . . . . . . . . Robots Built . | . . . . . . . . . . . . . . Authchips . | . . . . . . . . . . . . . . Time . | . . . . . . . . . . . . . . Total Robot Build Rating . | . . . . . . . . . . . . . . Part Schematics Acquired 3 | . . . . 2 . . . . . . . 1 . Parts Built . | . . . . . . . . . . . . . . Authchips . | . . . . . . . . . . . . . . Time . | . . . . . . . . . . . . . . Total Part Build Rating . | . . . . . . . . . . . . . . Parts Repaired . | . . . . . . . . . . . . . . Time . | . . . . . . . . . . . . . . Parts Recycled . | . . . . . . . . . . . . . . Recycled Matter 197 | . 197 . . . . . . . . . . . . Retrieved Matter . | . . . . . . . . . . . . . . Retrieved Components 2 | . . . . 2 . . . . . . . . . Parts Scanalyzed 2 | . . . . . . . . . . . . 2 . Part Schematics Acquired 1 | . . . . . . . . . . . . 1 . Parts Damaged . | . . . . . . . . . . . . . . Bothacking | -11 -10 -10 -10 -8 -8 -6 -6 -6 -6 -6 -6 -5 -5 ------------ Run | Yrd Mat Min Sub Rec Scr Fac Was Fac Gar Fac DSF Fac Ext Used RIF Installer 1 | . . . . . . . . . 1 . . . . Robots Hacked . | . . . . . . . . . . . . . . Non-combat . | . . . . . . . . . . . . . . Combat . | . . . . . . . . . . . . . . Robot Hacks Applied . | . . . . . . . . . . . . . . Relay Couplers Released 11 | . . . . . . . . . 11 . . . . Machine Destruction 11 | . . . . . . . . . 11 . . . . Fabnet Peak Effective % . | . . . . . . . . . . . . . . Robots Rewired 10 | . . . . . . . . . . . . . 10 Allies Hacked . | . . . . . . . . . . . . . . Hacks Repelled . | . . . . . . . . . . . . . . Allies | -11 -10 -10 -10 -8 -8 -6 -6 -6 -6 -6 -6 -5 -5 -------- Run | Yrd Mat Min Sub Rec Scr Fac Was Fac Gar Fac DSF Fac Ext Total Allies 36 | . . 3 . . . . 18 . . . . . 15 Largest Group 18 | . . 3 . . . . 18 18 18 12 12 11 12 Highest-Rated Group 656 | . . 40 . . . . 656 654 654 449 449 424 494 Highest-Rated Ally 159 | . . 16 . . . . 50 50 50 50 50 50 159 Total Orders 18 | . . . . . 17 1 . . . . . . . STAY 3 | . . . . . 3 . . . . . . . . ROAM 3 | . . . . . 3 . . . . . . . . FOLLOW 2 | . . . . . 2 . . . . . . . . EXPLORE 7 | . . . . . 6 1 . . . . . . . RETURN 3 | . . . . . 3 . . . . . . . . Ally Attacks 398 | . . 19 . . . . 10 39 96 . 47 30 157 Total Damage 10336 | . . 223 . . . . 438 819 2989 . 1478 1095 3294 Kills 81 | . . 4 . . . . 2 7 25 . 9 7 27 Allies Corrupted 2 | . . . . . . . . . 1 . . 1 . Allies Melted 1 | . . . . . . . . . . . . . 1 Intel | -11 -10 -10 -10 -8 -8 -6 -6 -6 -6 -6 -6 -5 -5 ------- Run | Yrd Mat Min Sub Rec Scr Fac Was Fac Gar Fac DSF Fac Ext Robot Analysis Total 4 | . 2 . . 2 . . . . . . . . . Derelict Logs Recovered 7 | . . 2 . . 5 . . . . . . . . Drone Launches 12 | . . . . . 9 3 . . . . . . . Drone Recoveries 11 | . . . . . 9 2 . . . . . . . Decoded 0b10 Intel 48 | . . . . . . 43 5 . . . . . . Items 48 | . . . . . . 43 5 . . . . . . Exploration | -11 -10 -10 -10 -8 -8 -6 -6 -6 -6 -6 -6 -5 -5 ------------- Run | Yrd Mat Min Sub Rec Scr Fac Was Fac Gar Fac DSF Fac Ext Turns Passed 14350 | 164 1146 811 663 862 5589 797 554 404 1273 38 231 285 1533 Spaces Moved 9233 | 83 882 552 287 580 3438 443 535 228 910 16 138 206 935 Core 391 | 7 . . . . . . 383 . . . . . 1 Treads 1 | . . . . . . . . . 1 . . . . Legs . | . . . . . . . . . . . . . . Wheels 8570 | 76 882 552 287 580 3438 443 64 58 909 16 138 206 921 Hover 258 | . . . . . . . 88 170 . . . . . Flight 13 | . . . . . . . . . . . . . 13 Fastest Speed 32 | 50 80 95 95 140 80 110 50 95 95 125 115 115 32 Average Speed 119 | 95 92 95 158 140 136 117 66 131 106 125 121 115 114 Slowest Speed 275 | 100 95 95 215 215 140 140 175 196 160 125 130 115 275 Overloaded Moves . | . . . . . . . . . . . . . . Propulsion Burnouts . | . . . . . . . . . . . . . . Robots Hopped . | . . . . . . . . . . . . . . Cave-ins Triggered . | . . . . . . . . . . . . . . Exploration Rate (%) 57 | 3 95 96 23 98 95 18 96 6 79 1 96 5 89 Regions Visited 13 Branch Regions 5 Pre-discovered Areas 10 | . . 2 . . 8 . . . . . . . . Known Exits Taken 3 | . . . . . . . . 1 . 1 . 1 . Unknown Exits Taken 6 | 1 1 1 1 1 1 . . . . . . . . Scrap Searched 5 | . . 1 . . 4 . . . . . . . . Spaces Dug 38 | . . . . . . 11 . . . . . 7 20 Terrain Destroyed 747 | . . . . 22 . 16 284 2 83 . 28 8 304 Melee 21 | . . . . . . 11 . . . . . 7 3 Projectile 14 | . . . . . . 5 . 2 . . 1 1 5 AOE 712 | . . . . 22 . . 284 . 83 . 27 . 296 Terrain Rammed . | . . . . . . . . . . . . . . Walls Destroyed . | . . . . . . . . . . . . . . Machines Disabled . | . . . . . . . . . . . . . . Actions | -11 -10 -10 -10 -8 -8 -6 -6 -6 -6 -6 -6 -5 -5 --------- Run | Yrd Mat Min Sub Rec Scr Fac Was Fac Gar Fac DSF Fac Ext Total 11828 | 136 1086 800 401 616 4361 624 702 291 1115 34 197 239 1226 Wait 1443 | . 100 200 21 8 830 42 108 18 40 17 3 9 47 Move 9221 | 82 881 551 286 579 3437 443 534 227 909 15 137 205 935 Hop . | . . . . . . . . . . . . . . Pick Up 208 | 22 16 8 22 8 50 27 7 3 33 . 6 2 4 Fast Attach 42 | . 1 1 . . . 1 2 6 11 1 9 4 6 Attach 74 | 7 2 . 6 . 5 31 10 1 2 . . 2 8 Detach 15 | . . . . . 1 5 7 . 1 . . 1 . Swap 72 | 1 10 3 6 4 5 12 . 6 7 . 3 2 13 Drop 165 | 7 10 11 8 8 32 11 3 8 36 1 19 5 6 Fire 415 | 17 66 26 52 9 . 40 31 21 70 . 4 2 77 Melee 23 | . . . . . . 12 . . . . . 7 4 Ram 12 | . . . . . . . . 1 . . . . 11 Kick . | . . . . . . . . . . . . . . Crush . | . . . . . . . . . . . . . . Escape Stasis 60 | . . . . . . . . . 6 . 16 . 38 Rewire 78 | . . . . . 1 . . . . . . . 77 Trap . | . . . . . . . . . . . . . . Miscellaneous . | . . . . . . . . . . . . . . Route ------- -11/Scrapyard -10/Materials (discovered 4 exits: [*Mat x3] / *Min) -10/Mines (discovered 3 exits: [*Mat] / [*Exi] / [*Sub]) -10/Subcaves (discovered 2 exits: [*Mat] / *Rec) -8/Recycling (discovered 2 exits: *Fac / *Scr) -8/Scraptown (discovered 2 exits: *Fac x2) -6/Factory (discovered 4 exits: Fac x2 / Low x2) -6/Waste -6/Factory (discovered 2 exits: Low / Gar) -6/Garrison (discovered 2 exits: *Fac x2) -6/Factory -6/DSF -5/Factory -5/Extension (discovered 1 exit: *Fac) History --------- Turn | Location | Event 5 | -11/Scrapyard | Discovered new exit (range 16) 165 | -11/Scrapyard | Entered Materials 317 | -10/Materials | Build established: Mutant 399 | -10/Materials | Discovered new exit (range 5) 714 | -10/Materials | Build established: Scavenger-Mutant 816 | -10/Materials | Discovered new exit (range 4) 1169 | -10/Materials | Discovered new exit (range 8) 1284 | -10/Materials | Discovered new exit (range 16) 1311 | -10/Materials | Entered Mines 1378 | -10/Mines | Assisted by bots powering up and referring to "LRC-V3" 1584 | -10/Mines | Learned location of Storage (-8) 1814 | -10/Mines | Discovered new exit (range 10) 1825 | -10/Mines | Found the Drone Emporium 1830 | -10/Mines | Found Prototype Device 1898 | -10/Mines | Deemed a non-threat by the Exiles lab entrance 1898 | -10/Mines | Discovered new exit (range 5) 1926 | -10/Mines | Discovered new exit (range 9) 2122 | -10/Mines | Entered Subcaves 2123 | -10/Subcaves | Discovered new exit (range 10) 2181 | -10/Subcaves | Core integrity fell below 50% 2263 | -10/Subcaves | A swath of the cavern ceiling suddenly collapsed 2601 | -10/Subcaves | A swath of the cavern ceiling suddenly collapsed 2731 | -10/Subcaves | Discovered new exit (range 13) 2785 | -10/Subcaves | Entered Recycling 2853 | -8/Recycling | Build established: Mutant 3427 | -8/Recycling | Core integrity fell below 20% 3479 | -8/Recycling | Discovered new exit (range 9) 3522 | -8/Recycling | Scanned before Scraplab entrance 3629 | -8/Recycling | Discovered new exit (range 11) 3633 | -8/Recycling | Entered Scraplab 3647 | -8/Recycling | Entered Scraptown 3959 | -8/Scraptown | Discovered new exit (range 5) 4000 | -8/Scraptown | Scanned Subdweller tech in exchange for log data 4004 | -8/Scraptown | Learned 12 Factory zone layouts 4005 | -8/Scraptown | Learned location of Warlord (-5) 4006 | -8/Scraptown | Learned location of Quarantine (-2) 4008 | -8/Scraptown | Learned location of Armory (-4) 4009 | -8/Scraptown | Learned location of 1 exit from Research 4075 | -8/Scraptown | Visited SPCMW 4127 | -8/Scraptown | Visited Red Mages 4212 | -8/Scraptown | Visited TADAMA 4240 | -8/Scraptown | Visited Cyclists 4594 | -8/Scraptown | Visited UFD Registry 4594 | -8/Scraptown | Registered with UFD as "Carbonmech" 4613 | -8/Scraptown | Visited Shadow of the Wyrm 4639 | -8/Scraptown | Visited Spacefarers 4699 | -8/Scraptown | Visited Supply Room 4791 | -8/Scraptown | Guru changed UFD alias to "Gunbrain" 4942 | -8/Scraptown | Entered Cyclist Reading Room 5248 | -8/Scraptown | Visited Infowarlord's Domain 5284 | -8/Scraptown | Visited Science Guys 5341 | -8/Scraptown | Visited DA-N13 Charitable Foundation 5347 | -8/Scraptown | Found DCF Scrap (27 items) 5414 | -8/Scraptown | Discovered new exit (range 3) 5526 | -8/Scraptown | Visited Cartography Club 6986 | -8/Scraptown | Learned location of Lower Caves (-6) 6986 | -8/Scraptown | Learned 12 Materials zone layouts 6986 | -8/Scraptown | Learned 16 Materials zone layouts 6986 | -8/Scraptown | Learned 12 Factory zone layouts 6986 | -8/Scraptown | Learned 8 Access zone layouts 6986 | -8/Scraptown | Learned 4 Storage zone layouts 6986 | -8/Scraptown | Learned 8 Upper Caves zone layouts 6986 | -8/Scraptown | Learned 24 Upper Caves zone layouts 6986 | -8/Scraptown | Learned 24 Proximity Caves zone layouts 6986 | -8/Scraptown | Learned 4 Armory zone layouts 6986 | -8/Scraptown | Learned location of 2 exits from Upper Caves 6986 | -8/Scraptown | Learned location of 3 exits from Proximity Caves 7054 | -8/Scraptown | Visited Scrapoid Pod Storage 7147 | -8/Scraptown | Visited Scrap Suit Storage 7310 | -8/Scraptown | Visited Scrapoid Research Area 7364 | -8/Scraptown | Visited Curators Association 7435 | -8/Scraptown | Visited Science Testing Area 7505 | -8/Scraptown | Visited LU-1G1's Boring Crew 8241 | -8/Scraptown | System corruption cleaned by C-Scrubber 9126 | -8/Scraptown | Found Scrap Suit 9236 | -8/Scraptown | Entered Factory 9236 | -6/Factory | Evolved 8 slots: Propulsion x2, Utility x5, Weapon x1 9237 | -6/Factory | Identified exit to Lower Caves 9238 | -6/Factory | Identified exit to Factory 9249 | -6/Factory | Identified Decoy Drone Bay 9358 | -6/Factory | Lost 3 parts (1p1n1u) 9603 | -6/Factory | Spotted B-75 Beast 9774 | -6/Factory | Lost 6 parts (3n2u1w) 9777 | -6/Factory | Build established: Scavenger-Mutant 9934 | -6/Factory | Lost 7 parts (1p4u2w) 10033 | -6/Factory | Sucked down chute 10033 | -6/Factory | Entered Waste 10047 | -6/Waste | Spotted C-40 Crusher 10086 | -6/Waste | Spotted C-40 Crusher 10095 | -6/Waste | Spotted C-40 Crusher 10098 | -6/Waste | Spotted C-40 Crusher 10098 | -6/Waste | Spotted C-40 Crusher 10103 | -6/Waste | Spotted C-40 Crusher 10103 | -6/Waste | Crushed by Compactor (1 part destroyed, 2 dropped) 10105 | -6/Waste | Crushed by Compactor (1 part destroyed) 10109 | -6/Waste | Crushed by Compactor (0 parts destroyed, 1 dropped) 10112 | -6/Waste | Crushed by Compactor (1 part destroyed, 1 dropped) 10113 | -6/Waste | Released all parts (7) 10121 | -6/Waste | Discovered new exit (range 16) 10141 | -6/Waste | Destroyed C-40 Crusher 10143 | -6/Waste | Lost 5 parts (1p4n) 10182 | -6/Waste | Destroyed C-40 Crusher 10184 | -6/Waste | Destroyed C-40 Crusher 10184 | -6/Waste | Destroyed C-40 Crusher 10311 | -6/Waste | Warlord forces began an assault 10319 | -6/Waste | Allies destroyed C-40 Crusher 10323 | -6/Waste | Allies destroyed C-40 Crusher 10420 | -6/Waste | Build established: Mutant 10587 | -6/Waste | Entered Factory 10587 | -6/Factory | Accompanied by 18 allies 10826 | -6/Factory | Identified exit to Garrison 10991 | -6/Factory | Entered Garrison 10991 | -6/Garrison | Accompanied by 18 allies 11015 | -6/Garrison | Triggered checkpoint 11042 | -6/Garrison | Build established: Scavenger-Tank 11069 | -6/Garrison | Lost 3 allies 11335 | -6/Garrison | Triggered checkpoint 11375 | -6/Garrison | Triggered checkpoint 11378 | -6/Garrison | Discovered new exit (range 10) 11661 | -6/Garrison | Found Relay Coupler [Proto] 11663 | -6/Garrison | Found Relay Coupler [Proto] 11667 | -6/Garrison | Found Relay Coupler [Proto] 11702 | -6/Garrison | Garrison Relay disabled 11791 | -6/Garrison | Triggered checkpoint 11834 | -6/Garrison | Garrison Relay disabled 11909 | -6/Garrison | Installed Relay Interface Framework 11935 | -6/Garrison | Phase Generator disabled 12007 | -6/Garrison | Spotted B-75 Beast 12019 | -6/Garrison | Allies destroyed B-75 Beast 12095 | -6/Garrison | Discovered new exit (range 9) 12117 | -6/Garrison | Triggered checkpoint 12178 | -6/Garrison | Garrison Relay disabled 12264 | -6/Garrison | Entered Factory 12264 | -6/Factory | Accompanied by 12 allies 12298 | -6/Factory | Identified exit to DSF 12302 | -6/Factory | Entered DSF 12302 | -6/DSF | Accompanied by 12 allies 12350 | -6/DSF | Discovered exit to Factory (range 16) 12352 | -6/DSF | Additional patrols routed to DSF 12441 | -6/DSF | Sterilization system engaged 12461 | -6/DSF | Ambient heat levels rising (+10) 12476 | -6/DSF | Ambient heat levels rising (+10) 12491 | -6/DSF | Ambient heat levels rising (+10) 12506 | -6/DSF | Ambient heat levels rising (+10) 12521 | -6/DSF | Ambient heat levels rising (+10) 12533 | -6/DSF | Entered Factory 12533 | -5/Factory | Accompanied by 11 allies 12533 | -5/Factory | Evolved 2 slots: Utility x2 12707 | -5/Factory | Lost 8 allies 12792 | -5/Factory | Discovered new exit (range 9) 12799 | -5/Factory | Identified exit to Extension 12818 | -5/Factory | Entered Extension 12992 | -5/Extension | Rescued a captive Derelict 12993 | -5/Extension | Rescued a captive Derelict 13203 | -5/Extension | Rescued a captive Derelict 13244 | -5/Extension | Rescued A7 13389 | -5/Extension | Rescued a captive Derelict 13418 | -5/Extension | First assault squad dispatched 13423 | -5/Extension | Spotted B-75 Beast 13773 | -5/Extension | Disrupted transfer network 13912 | -5/Extension | Destroyed B-75 Beast 13924 | -5/Extension | Spotted B-75 Beast 13926 | -5/Extension | High security lockdown imminent 13926 | -5/Extension | Allies destroyed B-75 Beast 13941 | -5/Extension | Discovered new exit (range 3) 13942 | -5/Extension | Identified exit to Factory 14006 | -5/Extension | High security lockdown engaged 14088 | -5/Extension | Destroyed 13 combat bots 14316 | -5/Extension | System corruption reached 10% 14328 | -5/Extension | Core integrity fell below 50% 14346 | -5/Extension | Core integrity fell below 20% 14351 | -5/Extension | Destroyed by P-70 Sage with High-powered Shock Rifle Last Messages --------------- 14340_ YXFPYVL